fUST/lending_fUST_20250122
["ID","MTS","AMOUNT","RATE_DAILY","PERIOD"]
[349930454,1737514247529,-505.30386479,0.00022054,3]
[349930456,1737514247539,-500.0,0.00022054,3]
[349930458,1737514247548,-500.0,0.00022054,3]
[349930460,1737514247558,-1123.86,0.00022054,3]
[349930462,1737514247567,-500.0,0.00022054,3]
[349930464,1737514247577,-500.0,0.00022054,3]
[349930466,1737514247586,-524.59606278,0.00022054,3]
[349930468,1737514247596,-500.0,0.00022054,3]
[349930470,1737514247606,-45275.19,0.00022054,3]
[349930472,1737514247616,-500.0,0.00022054,3]
[349930474,1737514247626,-1797.71,0.00022054,2]
[349930476,1737514247636,-500.0,0.00022054,3]
[349930478,1737514247645,-500.0,0.00022054,3]
[349930480,1737514247655,-2345.34,0.00022054,3]
[349930482,1737514247665,-3404.56,0.00022054,3]
[349930484,1737514247674,-528.2733341,0.00022054,2]
[349930486,1737514247684,-500.0,0.00022054,3]
[349930488,1737514247693,-10293.2,0.00022054,3]
[349930490,1737514247703,-508.30776499,0.00022054,3]
[349930492,1737514247713,-3114.49,0.00022054,3]
[349930494,1737514247724,-500.0,0.00022054,3]
[349930497,1737514247734,-1757.57,0.00022054,3]
[349930499,1737514247743,-500.0,0.00022054,3]
[349930501,1737514247753,-508.38266871,0.00022054,3]
[349930503,1737514247763,-504.91891821,0.00022054,3]
[349930505,1737514247773,-500.0,0.00022054,3]
[349930507,1737514247782,-509.67766882,0.00022054,3]
[349930509,1737514247792,-1684.0,0.00022054,3]
[349930511,1737514247801,-912.2,0.00022054,3]
[349930513,1737514247810,-568.9688094,0.00022054,3]
[349930515,1737514247819,-500.0,0.00022054,3]
[349930517,1737514247828,-500.0,0.00022054,3]
[349930519,1737514247837,-500.0,0.00022054,3]
[349930521,1737514247846,-732.29529531,0.00022054,3]
[349930911,1737514483812,163.078192,0.00013973,2]
[349930913,1737514537548,150.0,0.00019954,2]
[349930915,1737514839244,150.0,0.00019954,2]
[349930919,1737515197679,203.0,0.0002,2]
[349930981,1737515432819,-1924.15690613,0.0002085,2]
[349930983,1737515432829,-156.08641151,0.0002085,2]
[349930985,1737515432838,-214.603,0.0002095,2]
[349930987,1737515432848,-150.0,0.000214,2]
[349930989,1737515432858,-164.056,0.000214,2]
[349930990,1737515432868,-322.0,0.000214,9]
[349930992,1737515432878,-300.0,0.00021441,2]
[349930994,1737515432887,-707.41673427,0.00021442,7]
[349930996,1737515432899,-940.17120044,0.00021442,7]
[349931820,1737515442520,150.0,0.00019342,2]
[349931932,1737515476097,163.17419,0.00013973,2]
[349931935,1737515743771,150.0,0.00019342,2]
[349931951,1737516347020,150.0,0.000189,2]
[349931953,1737516390319,163.17419,0.00013973,2]
[349931960,1737516517134,11929.37571638,0.0002,2]
[349931963,1737516521468,303.00695112,0.0002,2]
[349931973,1737516602199,7767.0051811,0.00019848,2]
[349932016,1737516631840,-179.088542,0.00020252,2]
[349932018,1737516631850,-163.33812617,0.00020748,2]
[349932030,1737516631862,-0.71876552,0.00020748,2]
[349932033,1737516631971,-566.18806268,0.00020748,5]
[349932035,1737516631983,-499.563478,0.00020748,5]
[349932037,1737516631998,-655.77759031,0.00020748,5]
[349932039,1737516632010,-2373.43446965,0.00020748,5]
[349932041,1737516632019,-137.75105835,0.00020789,2]
[349932044,1737516632031,-162.24894165,0.00020789,2]
[349932046,1737516632040,-961.45883483,0.0002079,2]
[349932048,1737516632052,-724.75124218,0.0002079,2]
[349932050,1737516632061,-151.39320424,0.00020852,2]
[349932052,1737516632071,-231.95,0.0002095,2]
[349932054,1737516632081,-785.46555358,0.00021,2]
[349932620,1737516637937,-354.17045328,0.00021,5]
[349932622,1737516637947,-4871.73767906,0.00021,2]
[349932625,1737516637959,-3842.86265222,0.00021,2]
[349932629,1737516637995,-1812.33113915,0.00021,2]
[349932632,1737516638006,-4776.75427139,0.00021,2]
[349932637,1737516638051,-1863.50296197,0.00021,2]
[349932903,1737516642991,-395.77671979,0.00021,2]
[349932922,1737516645799,500.5,0.00024,120]
[349932934,1737516820607,6951.69152519,0.0002,2]
[349932938,1737517265565,163.17419,0.00013973,2]
[349932939,1737517492778,10442.1019873,0.00019,2]
[349932941,1737517665886,379.90587089,0.00024,120]
[349932942,1737517696724,343.83535396,0.0002,2]
[349932996,1737517832135,-9992.06043149,0.00020041,2]
[349932998,1737517832145,-300.0,0.00020377,2]
[349933000,1737517832155,-488.98207382,0.0002038,2]
[349933002,1737517832166,-9992.06043149,0.00020452,2]
[349933005,1737517832181,-151.0,0.00020594,2]
[349933007,1737517832191,-7863.740559,0.0002072,2]
[349933009,1737517832201,-9992.06043149,0.0002074,2]
[349933011,1737517832211,-152.0,0.00020757,2]
[349933013,1737517832222,-222.411,0.0002095,2]
[349933015,1737517832233,-166.69340834,0.00021142,2]
[349933017,1737517832243,-155.0,0.00021267,2]
[349933019,1737517832254,-310.0847758,0.000213,2]
[349933021,1737517832264,-177.14444,0.00021373,2]
[349933023,1737517832275,-466.19910369,0.00021399,2]
[349933025,1737517832285,-306.0,0.000214,9]
[349933027,1737517832296,-153.0,0.000214,2]
[349933029,1737517832306,-154.1761492,0.000214,2]
[349933032,1737517832315,-452.1906501,0.000214,2]
[349933035,1737517832326,-153.0,0.000214,2]
[349933037,1737517832337,-154.1159478,0.000214,2]
[349933039,1737517832347,-158.85,0.000214,2]
[349933041,1737517832357,-3352.41206529,0.00021442,7]
[349933043,1737517832369,-154.1761492,0.000215,2]
[349933045,1737517832379,-153.0,0.000215,2]
[349933047,1737517832389,-177.14444,0.00021523,2]
[349933049,1737517832399,-177.14444,0.00021672,2]
[349933051,1737517832408,-150.0,0.00021707,2]
[349933053,1737517832419,-150.309,0.00021707,2]
[349933055,1737517832429,-150.0,0.00021707,2]
[349933057,1737517832439,-150.0,0.00021733,2]
[349933059,1737517832449,-2230.0,0.00021788,2]
[349933061,1737517832460,-1000.0,0.000218,8]
[349933063,1737517832469,-1010.47,0.000218,15]
[349933065,1737517832479,-1603.60564086,0.000218,2]
[349933067,1737517832490,-375.12794291,0.00021817,2]
[349933070,1737517832499,-177.14444,0.00021822,2]
[349933072,1737517832510,-375.12794291,0.00021851,2]
[349933088,1737517832661,-309.52042636,0.00021873,2]
[349933090,1737517832671,-375.12794291,0.00021886,2]
[349933092,1737517832680,-475.86,0.000219,2]
[349933094,1737517832690,-177.306,0.000219,2]
[349933096,1737517832700,-291.00195077,0.000219,3]
[349933098,1737517832709,-3997.35793966,0.00021916,5]
[349933100,1737517832719,-500.0,0.00021916,2]
[349933102,1737517832728,-246.38323846,0.00021916,2]
[349933398,1737517838046,-395.0,0.00021733,2]
[349933400,1737517838055,-322.1832514,0.000218,5]
[349933402,1737517838065,-253.61676154,0.00021916,2]
[349933404,1737517838074,-500.0,0.00021916,2]
[349933406,1737517838083,-546.60708765,0.00021916,2]
[349933408,1737517838092,-500.0,0.00021916,2]
[349933410,1737517838102,-500.0,0.00021916,2]
[349933412,1737517838111,-500.0,0.00021916,2]
[349933413,1737517838120,-500.0,0.00021916,2]
[349933415,1737517838130,-199.01740931,0.00021916,2]
[349933418,1737517838139,-500.0,0.00021916,2]
[349933420,1737517838148,-303.93375177,0.00021916,2]
[349933422,1737517838157,-573.48711508,0.00021916,2]
[349933424,1737517838167,-500.0,0.00021916,2]
[349933425,1737517838178,-500.0,0.00021916,2]
[349933427,1737517838187,-500.0,0.00021916,2]
[349933429,1737517838197,-176.01189764,0.00021916,2]
[349933432,1737517838207,-182.13457975,0.00021916,2]
[349933434,1737517838217,-500.0,0.00021916,2]
[349933436,1737517838227,-500.0,0.00021916,2]
[349933438,1737517838236,-160.0,0.00021916,2]
[349933440,1737517838246,-160.0,0.00021916,2]
[349933442,1737517838256,-501.0011745,0.00021917,3]
[349933444,1737517838266,-500.0,0.00021917,3]
[349933446,1737517838275,-514.88821149,0.00021917,3]
[349933448,1737517838284,-501.67125995,0.00021917,3]
[349933450,1737517838294,-500.0,0.00021917,3]
[349933451,1737517838304,-511.94851244,0.00021917,3]
[349933452,1737517838313,-500.0,0.00021917,3]
[349933453,1737517838323,-381.49061074,0.00021917,3]
[349933454,1737517838332,-500.0,0.00021917,3]
[349933455,1737517838342,-500.0,0.00021917,3]
[349933456,1737517838351,-154.13783469,0.00021917,3]
[349933457,1737517838361,-420.92143415,0.00021917,3]
[349933458,1737517838371,-500.0,0.00021917,3]
[349933459,1737517838380,-500.0,0.00021917,3]
[349933460,1737517838390,-500.0,0.00021917,3]
[349933461,1737517838400,-500.0,0.00021917,3]
[349933463,1737517838410,-512.12455414,0.00021917,3]
[349933465,1737517838419,-500.0,0.00021917,3]
[349933467,1737517838429,-500.0,0.00021917,3]
[349933468,1737517838439,-500.0,0.00021917,3]
[349933471,1737517838448,-500.0,0.00021917,3]
[349933473,1737517838458,-500.0,0.00021917,3]
[349933474,1737517838467,-500.0,0.00021917,3]
[349933476,1737517838476,-500.0,0.00021917,3]
[349933478,1737517838485,-500.0,0.00021917,3]
[349933480,1737517838495,-500.0,0.00021917,3]
[349933482,1737517838505,-511.81246876,0.00021917,3]
[349933484,1737517838514,-500.0,0.00021917,3]
[349933486,1737517838525,-500.0,0.00021917,3]
[349933488,1737517838534,-500.0,0.00021917,3]
[349933490,1737517838544,-500.0,0.00021917,3]
[349933493,1737517838554,-500.0,0.00021917,3]
[349933494,1737517838563,-500.0,0.00021917,3]
[349933497,1737517838573,-500.0,0.00021917,3]
[349933498,1737517838583,-500.0,0.00021917,3]
[349933501,1737517838593,-557.4,0.00021917,3]
[349933503,1737517838603,-500.0,0.00021917,3]
[349933505,1737517838612,-500.0,0.00021917,3]
[349933507,1737517838622,-500.0,0.00021917,3]
[349933509,1737517838631,-503.22069106,0.00021917,2]
[349933511,1737517838641,-500.0,0.00021917,3]
[349933513,1737517838651,-297.06218796,0.00021917,3]
[349933515,1737517838659,-500.0,0.00021917,3]
[349933517,1737517838668,-330.34880029,0.00021917,3]
[349933518,1737517838679,-500.0,0.00021917,3]
[349933520,1737517838688,-500.0,0.00021917,3]
[349933522,1737517838698,-500.0,0.00021917,3]
[349933524,1737517838707,-500.0,0.00021917,3]
[349933526,1737517838716,-500.0,0.00021917,3]
[349933528,1737517838726,-500.0,0.00021917,3]
[349933530,1737517838735,-500.0,0.00021917,3]
[349933532,1737517838744,-970.59,0.00021917,3]
[349933534,1737517838754,-505.47104107,0.00021917,3]
[349933536,1737517838764,-500.0,0.00021917,3]
[349933538,1737517838773,-500.0,0.00021917,3]
[349933540,1737517838783,-500.0,0.00021917,3]
[349933542,1737517838792,-500.0,0.00021917,3]
[349933544,1737517838801,-584.16,0.00021917,3]
[349933546,1737517838811,-500.0,0.00021917,3]
[349933548,1737517838820,-500.0,0.00021917,3]
[349933550,1737517838830,-507.19985852,0.00021917,3]
[349933552,1737517838839,-500.0,0.00021917,3]
[349933554,1737517838848,-500.0,0.00021917,3]
[349933556,1737517838858,-500.0,0.00021917,3]
[349933558,1737517838867,-500.0,0.00021917,3]
[349933560,1737517838876,-500.0,0.00021917,3]
[349933562,1737517838886,-500.0,0.00021917,3]
[349933564,1737517838895,-500.0,0.00021917,3]
[349933566,1737517838905,-500.0,0.00021917,3]
[349933568,1737517838915,-500.0,0.00021917,3]
[349933570,1737517838924,-502.21020873,0.00021917,3]
[349933572,1737517838933,-500.0,0.00021917,3]
[349933574,1737517838943,-500.0,0.00021917,3]
[349933576,1737517838952,-293.33798494,0.00021917,3]
[349933578,1737517838961,-500.0,0.00021917,3]
[349933579,1737517838971,-500.0,0.00021917,3]
[349933580,1737517838980,-500.0,0.00021917,3]
[349933581,1737517838990,-503.54357553,0.00021917,3]
[349933582,1737517839101,-500.0,0.00021917,3]
[349933583,1737517839112,-501.25779478,0.00021917,3]
[349933584,1737517839121,-508.02312708,0.00021917,3]
[349933585,1737517839131,-500.0,0.00021917,3]
[349933586,1737517839140,-500.0,0.00021917,3]
[349933587,1737517839150,-500.0,0.00021917,3]
[349933588,1737517839160,-500.0,0.00021917,3]
[349933589,1737517839170,-500.0,0.00021917,3]
[349933590,1737517839184,-500.0,0.00021917,3]
[349933591,1737517839193,-500.0,0.00021917,3]
[349933592,1737517839203,-500.0,0.00021917,3]
[349933593,1737517839216,-500.0,0.00021917,3]
[349933594,1737517839227,-620.29,0.00021917,3]
[349933595,1737517839237,-500.0,0.00021917,3]
[349933596,1737517839246,-500.0,0.00021917,3]
[349933597,1737517839257,-500.0,0.00021917,3]
[349933598,1737517839267,-500.0,0.00021917,3]
[349933599,1737517839276,-504.20104597,0.00021917,3]
[349933600,1737517839286,-500.0,0.00021917,3]
[349933601,1737517839296,-500.0,0.00021917,3]
[349933602,1737517839305,-507.17213117,0.00021917,3]
[349933603,1737517839315,-344.87096887,0.00021917,3]
[349933604,1737517839324,-716.51,0.00021917,3]
[349933605,1737517839334,-617.03,0.00021917,3]
[349933606,1737517839343,-187.23849509,0.00021917,3]
[349933607,1737517839353,-563.24,0.00021917,3]
[349933608,1737517839364,-500.0,0.00021917,3]
[349933609,1737517839374,-500.0,0.00021917,3]
[349933610,1737517839384,-500.0,0.00021917,3]
[349933611,1737517839393,-500.0,0.00021917,3]
[349933612,1737517839403,-500.0,0.00021917,3]
[349933613,1737517839413,-500.0,0.00021917,3]
[349933614,1737517839422,-500.0,0.00021917,3]
[349933615,1737517839434,-500.0,0.00021917,3]
[349933616,1737517839444,-841.52,0.00021917,3]
[349933617,1737517839454,-500.0,0.00021917,3]
[349933618,1737517839464,-500.0,0.00021917,3]
[349933619,1737517839474,-500.0,0.00021917,3]
[349933620,1737517839483,-791.26,0.00021917,3]
[349933621,1737517839494,-500.0,0.00021917,3]
[349933622,1737517839504,-500.0,0.00021917,3]
[349933624,1737517839513,-500.0,0.00021917,3]
[349933626,1737517839523,-500.0,0.00021917,3]
[349933628,1737517839533,-500.0,0.00021917,3]
[349933629,1737517839543,-500.0,0.00021917,3]
[349933630,1737517839553,-500.0,0.00021917,3]
[349933631,1737517839563,-500.0,0.00021917,3]
[349933633,1737517839572,-500.0,0.00021917,3]
[349933635,1737517839582,-500.0,0.00021917,3]
[349933637,1737517839592,-500.0,0.00021917,3]
[349933639,1737517839602,-500.0,0.00021917,3]
[349933640,1737517839612,-500.0,0.00021917,3]
[349933642,1737517839622,-500.0,0.00021917,3]
[349933644,1737517839631,-575.58,0.00021917,3]
[349933646,1737517839641,-500.0,0.00021917,3]
[349933648,1737517839650,-502.32509964,0.00021917,3]
[349933650,1737517839663,-508.70281342,0.00021917,3]
[349933651,1737517839672,-500.0,0.00021917,3]
[349933652,1737517839683,-500.0,0.00021917,3]
[349933653,1737517839694,-500.0,0.00021917,3]
[349933654,1737517839703,-500.0,0.00021917,3]
[349933655,1737517839714,-500.0,0.00021917,3]
[349933656,1737517839723,-1080.54,0.00021917,3]
[349933657,1737517839732,-500.0,0.00021917,3]
[349933658,1737517839743,-500.0,0.00021917,3]
[349933659,1737517839753,-500.0,0.00021917,3]
[349933660,1737517839763,-500.0,0.00021917,3]
[349933661,1737517839773,-500.0,0.00021917,3]
[349933663,1737517839782,-477.14392134,0.00021917,3]
[349933665,1737517839792,-500.0,0.00021917,3]
[349933667,1737517839802,-1057.53,0.00021917,3]
[349933669,1737517839812,-500.0,0.00021917,3]
[349933671,1737517839821,-357.62943014,0.00021917,3]
[349933673,1737517839831,-500.0,0.00021917,3]
[349933675,1737517839840,-447.07171385,0.00021917,3]
[349933677,1737517839850,-500.0,0.00021917,3]
[349933679,1737517839859,-614.04,0.00021917,3]
[349933681,1737517839869,-504.74157458,0.00021917,3]
[349933682,1737517839884,-500.0,0.00021917,3]
[349933685,1737517839901,-1191.93,0.00021917,3]
[349933686,1737517839911,-582.15548927,0.00021917,3]
[349933688,1737517839921,-1055.9,0.00021917,3]
[349933691,1737517839931,-827.0,0.00021917,3]
[349933693,1737517839941,-500.0,0.00021917,3]
[349933695,1737517839951,-500.0,0.00021917,3]
[349933697,1737517839961,-151.0,0.00021917,2]
[349933699,1737517839971,-151.0,0.00021917,2]
[349933701,1737517839980,-500.0,0.00021917,3]
[349933703,1737517839990,-151.0,0.00021917,2]
[349933705,1737517839999,-154.273754,0.00021917,2]
[349933706,1737517840009,-500.0,0.00021917,3]
[349933709,1737517840019,-807.25,0.00021917,3]
[349933711,1737517840029,-504.10828092,0.00021917,3]
[349933713,1737517840040,-500.0,0.00021917,3]
[349933715,1737517840049,-500.0,0.00021917,3]
[349933717,1737517840059,-500.0,0.00021917,3]
[349933719,1737517840069,-500.0,0.00021917,3]
[349933720,1737517840078,-511.98174019,0.00021917,3]
[349933722,1737517840088,-500.0,0.00021917,3]
[349933725,1737517840098,-690.37,0.00021917,3]
[349933727,1737517840107,-500.0,0.00021917,3]
[349933729,1737517840117,-500.0,0.00021917,3]
[349933731,1737517840127,-151.0,0.00021917,2]
[349933733,1737517840143,-151.0,0.00021917,2]
[349933735,1737517840153,-250.21271209,0.00021917,3]
[349933737,1737517840163,-151.0,0.00021917,2]
[349933739,1737517840175,-151.0,0.00021917,2]
[349933741,1737517840186,-596.87,0.00021917,3]
[349933743,1737517840195,-151.0,0.00021917,2]
[349933745,1737517840204,-261.873255,0.00021917,2]
[349933747,1737517840214,-642.28,0.00021917,3]
[349933749,1737517840224,-151.0,0.00021917,2]
[349933751,1737517840234,-500.0,0.00021917,3]
[349933753,1737517840243,-151.0,0.00021917,2]
[349933755,1737517840254,-160.067476,0.00021917,2]
[349933757,1737517840264,-500.0,0.00021917,3]
[349933759,1737517840274,-500.0,0.00021917,3]
[349933761,1737517840284,-500.0,0.00021917,3]
[349933763,1737517840294,-500.0,0.00021917,3]
[349933765,1737517840303,-453.76019078,0.00021917,3]
[349933767,1737517840314,-500.0,0.00021917,3]
[349933769,1737517840324,-502.36238528,0.00021917,3]
[349933771,1737517840334,-500.0,0.00021917,3]
[349933773,1737517840344,-1149.13,0.00021917,3]
[349933775,1737517840354,-500.0,0.00021917,3]
[349933777,1737517840365,-502.87155863,0.00021917,3]
[349933779,1737517840375,-500.0,0.00021917,3]
[349933781,1737517840385,-1066.76,0.00021917,3]
[349933784,1737517840395,-504.49643092,0.00021917,3]
[349933785,1737517840405,-500.0,0.00021917,3]
[349933787,1737517840416,-500.0,0.00021917,3]
[349933789,1737517840426,-500.0,0.00021917,3]
[349933791,1737517840435,-500.0,0.00021917,3]
[349933793,1737517840444,-500.0,0.00021917,3]
[349933795,1737517840454,-500.0,0.00021917,3]
[349933796,1737517840465,-500.0,0.00021917,3]
[349933797,1737517840475,-500.0,0.00021917,3]
[349933798,1737517840484,-500.0,0.00021917,3]
[349933799,1737517840495,-327.82679629,0.00021917,3]
[349933800,1737517840504,-742.07,0.00021917,3]
[349933801,1737517840514,-151.0,0.00021917,2]
[349933802,1737517840523,-151.0,0.00021917,2]
[349933803,1737517840533,-152.108073,0.00021917,2]
[349933804,1737517840543,-640.78,0.00021917,3]
[349933805,1737517840552,-151.0,0.00021917,2]
[349933806,1737517840561,-151.0,0.00021917,2]
[349933807,1737517840572,-151.0,0.00021917,2]
[349933808,1737517840582,-151.0,0.00021917,2]
[349933809,1737517840592,-500.0,0.00021917,3]
[349933810,1737517840602,-158.124823,0.00021917,2]
[349933811,1737517840611,-500.0,0.00021917,3]
[349933812,1737517840623,-151.0,0.00021917,2]
[349933813,1737517840632,-151.0,0.00021917,2]
[349933814,1737517840642,-151.0,0.00021917,2]
[349933815,1737517840651,-259.68538367,0.00021917,2]
[349933816,1737517840661,-503.58495884,0.00021917,3]
[349933817,1737517840671,-500.0,0.00021917,3]
[349933818,1737517840681,-355.79516148,0.00021917,3]
[349933819,1737517840691,-500.0,0.00021917,3]
[349933820,1737517840700,-500.0,0.00021917,3]
[349933821,1737517840710,-814.78,0.00021917,3]
[349933822,1737517840721,-500.0,0.00021917,3]
[349933823,1737517840731,-695.441392,0.00021917,2]
[349933824,1737517840741,-695.441392,0.00021917,2]
[349933825,1737517840750,-695.441392,0.00021917,2]
[349933826,1737517840759,-695.441392,0.00021917,2]
[349933827,1737517840769,-695.441392,0.00021917,2]
[349933828,1737517840779,-695.441392,0.00021917,2]
[349933829,1737517840788,-695.441392,0.00021917,2]
[349933830,1737517840798,-2134.52,0.00021917,3]
[349933831,1737517840807,-695.441392,0.00021917,2]
[349933832,1737517840817,-695.441392,0.00021917,2]
[349933833,1737517840827,-695.441392,0.00021917,2]
[349933834,1737517840836,-436.33170242,0.00021917,3]
[349933835,1737517840923,-695.441392,0.00021917,2]
[349933836,1737517840933,-695.441392,0.00021917,2]
[349933837,1737517840943,-500.0,0.00021917,3]
[349933838,1737517840953,-695.441392,0.00021917,2]
[349933839,1737517840962,-695.441392,0.00021917,2]
[349933840,1737517840973,-617.13,0.00021917,3]
[349933841,1737517840982,-151.0,0.00021917,2]
[349933842,1737517840991,-151.0,0.00021917,2]
[349933843,1737517841001,-154.175817,0.00021917,2]
[349933844,1737517841009,-2568.43,0.00021917,3]
[349933845,1737517841018,-151.0,0.00021917,2]
[349933846,1737517841028,-151.0,0.00021917,2]
[349933847,1737517841037,-151.0,0.00021917,2]
[349933848,1737517841047,-151.0,0.00021917,2]
[349933849,1737517841056,-151.0,0.00021917,2]
[349933850,1737517841066,-277.152737,0.00021917,2]
[349933851,1737517841075,-500.0,0.00021917,3]
[349933852,1737517841085,-500.0,0.00021917,3]
[349933853,1737517841094,-500.0,0.00021917,3]
[349933854,1737517841103,-514.96099302,0.00021917,3]
[349933855,1737517841112,-898.35,0.00021917,3]
[349933856,1737517841122,-500.0,0.00021917,3]
[349933857,1737517841132,-798.75,0.00021917,3]
[349933858,1737517841142,-500.0,0.00021917,3]
[349933859,1737517841151,-500.0,0.00021917,3]
[349933860,1737517841161,-500.0,0.00021917,3]
[349933861,1737517841170,-500.0,0.00021917,3]
[349933862,1737517841184,-37936.01449665,0.00021917,3]
[349933863,1737517841203,-1365.34059203,0.00021917,3]
[349933864,1737517841215,-3113.56491132,0.00021917,3]
[349933865,1737517841224,-500.0,0.00021917,3]
[349933866,1737517841234,-500.0,0.00021917,3]
[349933867,1737517841243,-1051.04,0.00021917,3]
[349933868,1737517841254,-500.0,0.00021917,3]
[349933869,1737517841264,-526.41167219,0.00021917,3]
[349933870,1737517841274,-500.0,0.00021917,3]
[349933871,1737517841284,-500.0,0.00021917,3]
[349933872,1737517841293,-500.0,0.00021917,3]
[349933873,1737517841303,-500.0,0.00021917,3]
[349933874,1737517841312,-2170.73,0.00021917,3]
[349933875,1737517841321,-500.0,0.00021917,3]
[349933876,1737517841330,-511.92579448,0.00021917,3]
[349933877,1737517841340,-740.8,0.00021917,3]
[349933878,1737517841349,-500.0,0.00021917,3]
[349933879,1737517841358,-500.0,0.00021917,3]
[349933880,1737517841367,-2873.79,0.00021917,3]
[349933881,1737517841376,-500.0,0.00021917,3]
[349933882,1737517841385,-500.0,0.00021917,3]
[349933883,1737517841394,-500.0,0.00021917,3]
[349933884,1737517841403,-500.0,0.00021917,2]
[349933885,1737517841412,-925.25,0.00021917,3]
[349933886,1737517841422,-1777.5,0.00021917,2]
[349933887,1737517841431,-1631.94,0.00021917,3]
[349933888,1737517841440,-151.0,0.00021917,2]
[349933889,1737517841450,-151.0,0.00021917,2]
[349933890,1737517841459,-500.0,0.00021917,3]
[349933891,1737517841468,-151.0,0.00021917,2]
[349933892,1737517841478,-151.0,0.00021917,2]
[349933893,1737517841487,-151.0,0.00021917,2]
[349933894,1737517841496,-151.0,0.00021917,2]
[349933895,1737517841506,-151.0,0.00021917,2]
[349933896,1737517841515,-843.09,0.00021917,3]
[349933897,1737517841524,-151.0,0.00021917,2]
[349933898,1737517841533,-266.243845,0.00021917,2]
[349933899,1737517841543,-500.0,0.00021917,3]
[349933900,1737517841552,-1564.5,0.00021917,3]
[349933901,1737517841562,-500.0,0.00021917,3]
[349933902,1737517841571,-2005.70666358,0.00021917,3]
[349933903,1737517841582,-1219.72333642,0.00021917,3]
[349933904,1737517841591,-500.0,0.00021917,3]
[349933905,1737517841600,-151.0,0.00021917,2]
[349933906,1737517841609,-151.0,0.00021917,2]
[349933907,1737517841618,-151.0,0.00021917,2]
[349933908,1737517841627,-151.0,0.00021917,2]
[349933909,1737517841636,-500.0,0.00021917,3]
[349933910,1737517841645,-151.0,0.00021917,2]
[349933911,1737517841655,-151.0,0.00021917,2]
[349933912,1737517841665,-151.0,0.00021917,2]
[349933913,1737517841674,-151.0,0.00021917,2]
[349933914,1737517841683,-151.0,0.00021917,2]
[349933915,1737517841692,-264.443656,0.00021917,2]
[349933916,1737517841701,-500.0,0.00021917,3]
[349933917,1737517841710,-500.0,0.00021917,3]
[349933918,1737517841720,-500.0,0.00021917,3]
[349933919,1737517841730,-151.0,0.00021917,2]
[349933920,1737517841739,-151.0,0.00021917,2]
[349933921,1737517841747,-153.016265,0.00021917,2]
[349933922,1737517841756,-500.0,0.00021917,3]
[349933923,1737517841765,-9671.22,0.00021917,3]
[349933924,1737517841775,-505.95847072,0.00021917,3]
[349933925,1737517841795,-473.88356606,0.00021917,3]
[349933926,1737517841817,-26.11643394,0.00021917,3]
[349933927,1737517841828,-653.09,0.00021917,3]
[349933928,1737517841839,-3178.25,0.00021917,3]
[349933929,1737517841850,-630.92,0.00021917,3]
[349933930,1737517841860,-500.0,0.00021917,3]
[349933931,1737517841869,-151.0,0.00021917,2]
[349933932,1737517841878,-151.0,0.00021917,2]
[349933933,1737517841888,-151.0,0.00021917,2]